fUSD/lending_fUSD_20250112
["ID","MTS","AMOUNT","RATE_DAILY","PERIOD"]
[348653784,1736700636752,-500.0,8.999e-05,2]
[348653785,1736700636762,-500.0,8.999e-05,2]
[348653786,1736700636772,-500.0,8.999e-05,2]
[348653787,1736700636781,-500.0,8.999e-05,2]
[348653788,1736700636790,-501.41511313,8.999e-05,2]
[348653789,1736700636800,-500.0,8.999e-05,2]
[348653790,1736700636810,-500.0,8.999e-05,2]
[348653791,1736700636820,-610.16,8.999e-05,2]
[348653792,1736700636831,-500.0,8.999e-05,2]
[348653793,1736700636841,-500.0,8.999e-05,2]
[348653794,1736700636851,-500.0,8.999e-05,2]
[348653795,1736700636861,-500.0,8.999e-05,2]
[348653796,1736700636870,-500.67578421,8.999e-05,2]
[348653797,1736700636880,-500.0,8.999e-05,2]
[348653798,1736700636890,-500.0,8.999e-05,2]
[348653799,1736700636901,-544.28,8.999e-05,2]
[348653800,1736700636911,-500.0,8.999e-05,2]
[348653801,1736700636921,-500.0,8.999e-05,2]
[348653802,1736700636930,-500.0,8.999e-05,2]
[348653803,1736700636939,-500.0,8.999e-05,2]
[348653804,1736700636950,-1214.34,8.999e-05,2]
[348653805,1736700636960,-553.68,8.999e-05,2]
[348653806,1736700636970,-500.0,8.999e-05,2]
[348653807,1736700636980,-500.0,8.999e-05,2]
[348653808,1736700636990,-500.0,8.999e-05,2]
[348653809,1736700637000,-500.0,8.999e-05,2]
[348653810,1736700637009,-815.64,8.999e-05,2]
[348653811,1736700637019,-500.0,8.999e-05,2]
[348653812,1736700637029,-684.62,8.999e-05,2]
[348653813,1736700637039,-500.0,8.999e-05,2]
[348653814,1736700637049,-500.0,8.999e-05,2]
[348653815,1736700637059,-500.0,8.999e-05,2]
[348653816,1736700637070,-500.0,8.999e-05,2]
[348653817,1736700637079,-500.0,8.999e-05,2]
[348653818,1736700637090,-500.0,8.999e-05,2]
[348653819,1736700637100,-500.0,8.999e-05,2]
[348653820,1736700637114,-500.0,8.999e-05,2]
[348653821,1736700637124,-500.880498,8.999e-05,2]
[348653822,1736700637134,-500.0,8.999e-05,2]
[348653823,1736700637144,-365.59145259,8.999e-05,2]
[348653825,1736700637155,-500.0,8.999e-05,2]
[348653826,1736700637165,-500.0,8.999e-05,2]
[348653827,1736700637175,-500.0,8.999e-05,2]
[348653829,1736700637187,-500.41754991,8.999e-05,2]
[348653831,1736700637196,-500.0,8.999e-05,2]
[348653833,1736700637206,-500.0,8.999e-05,2]
[348653834,1736700637215,-932.52,8.999e-05,2]
[348653835,1736700637225,-500.0,8.999e-05,2]
[348653836,1736700637235,-500.0,8.999e-05,2]
[348653837,1736700637245,-500.0,8.999e-05,2]
[348653838,1736700637256,-500.0,8.999e-05,2]
[348653839,1736700637265,-625.7,8.999e-05,2]
[348653840,1736700637276,-500.0,8.999e-05,2]
[348653841,1736700637286,-500.0,8.999e-05,2]
[348653842,1736700637295,-721.16,8.999e-05,2]
[348653843,1736700637305,-500.92485034,8.999e-05,2]
[348653844,1736700637314,-797.42,8.999e-05,2]
[348653845,1736700637323,-168.24603,8.999e-05,2]
[348653846,1736700637333,-500.0,8.999e-05,2]
[348653847,1736700637342,-500.0,8.999e-05,2]
[348653848,1736700637351,-500.0,8.999e-05,2]
[348653849,1736700637361,-617.87,8.999e-05,2]
[348653851,1736700637370,-500.0,8.999e-05,2]
[348653853,1736700637380,-500.0,8.999e-05,2]
[348653855,1736700637391,-500.0,8.999e-05,2]
[348653857,1736700637400,-500.0,8.999e-05,2]
[348653859,1736700637409,-500.0,8.999e-05,2]
[348653860,1736700637419,-500.0,8.999e-05,2]
[348653861,1736700637429,-500.0,8.999e-05,2]
[348653862,1736700637439,-500.0,8.999e-05,2]
[348653863,1736700637448,-155.371198,8.999e-05,2]
[348653864,1736700637458,-509.16406017,8.999e-05,2]
[348653865,1736700637468,-779.4,8.999e-05,2]
[348653866,1736700637478,-500.0,8.999e-05,2]
[348653867,1736700637487,-500.0,8.999e-05,2]
[348653868,1736700637497,-500.0,8.999e-05,2]
[348653869,1736700637506,-500.0,8.999e-05,2]
[348653870,1736700637516,-500.0,8.999e-05,2]
[348653871,1736700637525,-500.0,8.999e-05,2]
[348653872,1736700637534,-500.0,8.999e-05,2]
[348653873,1736700637543,-502.67442728,8.999e-05,2]
[348653874,1736700637553,-756.66,8.999e-05,2]
[348653875,1736700637563,-504.50441447,8.999e-05,2]
[348653876,1736700637572,-500.0,8.999e-05,2]
[348653877,1736700637581,-532.59621255,8.999e-05,2]
[348653878,1736700637591,-500.0,8.999e-05,2]
[348653879,1736700637600,-500.0,8.999e-05,2]
[348653880,1736700637609,-500.0,8.999e-05,2]
[348653881,1736700637618,-300.0,8.999e-05,2]
[348653882,1736700637627,-527.36,8.999e-05,2]
[348653883,1736700637637,-500.0,8.999e-05,2]
[348653884,1736700637646,-500.0,8.999e-05,2]
[348653885,1736700637656,-500.0,8.999e-05,2]
[348653886,1736700637665,-500.0,8.999e-05,2]
[348653887,1736700637674,-500.0,8.999e-05,2]
[348653888,1736700637684,-566.83,8.999e-05,2]
[348653889,1736700637693,-500.0,8.999e-05,2]
[348653890,1736700637703,-500.0,8.999e-05,2]
[348653892,1736700637712,-205.70089354,8.999e-05,2]
[348653894,1736700637721,-504.40881509,8.999e-05,2]
[348653896,1736700637730,-500.0,8.999e-05,2]
[348653898,1736700637739,-500.0,8.999e-05,2]
[348653900,1736700637748,-507.66,8.999e-05,2]
[348653901,1736700637757,-500.0,8.999e-05,2]
[348653903,1736700637766,-500.0,8.999e-05,2]
[348653905,1736700637775,-508.37300892,8.999e-05,2]
[348653907,1736700637784,-500.83983256,8.999e-05,2]
[348653909,1736700637793,-500.0,8.999e-05,2]
[348653911,1736700637802,-500.0,8.999e-05,2]
[348653913,1736700637811,-500.0,8.999e-05,2]
[348653915,1736700637820,-500.0,8.999e-05,2]
[348653918,1736700637829,-500.0,8.999e-05,2]
[348653921,1736700637838,-554.85863605,8.999e-05,2]
[348653924,1736700637847,-500.0,8.999e-05,2]
[348653926,1736700637856,-1148.17,8.999e-05,2]
[348653929,1736700637866,-500.0,8.999e-05,2]
[348653931,1736700637875,-500.0,8.999e-05,2]
[348653933,1736700637883,-500.0,8.999e-05,2]
[348653935,1736700637894,-500.0,8.999e-05,2]
[348653937,1736700637904,-500.0,8.999e-05,2]
[348653939,1736700637913,-697.58,8.999e-05,2]
[348653941,1736700637922,-500.0,8.999e-05,2]
[348653944,1736700637932,-500.0,8.999e-05,2]
[348653946,1736700637941,-500.0,8.999e-05,2]
[348653948,1736700637951,-500.67291611,8.999e-05,2]
[348653949,1736700637960,-500.0,8.999e-05,2]
[348653951,1736700637969,-500.0,8.999e-05,2]
[348653953,1736700637978,-500.0,8.999e-05,2]
[348653955,1736700637988,-500.0,8.999e-05,2]
[348653957,1736700637997,-500.0,8.999e-05,2]
[348653959,1736700638006,-640.34,8.999e-05,2]
[348653961,1736700638015,-1565.32,8.999e-05,2]
[348653963,1736700638025,-500.86353367,8.999e-05,2]
[348653965,1736700638034,-500.0,8.999e-05,2]
[348653967,1736700638043,-500.0,8.999e-05,2]
[348653969,1736700638052,-500.0,8.999e-05,2]
[348653971,1736700638061,-641.6,8.999e-05,2]
[348653973,1736700638070,-500.0,8.999e-05,2]
[348653975,1736700638080,-500.0,8.999e-05,2]
[348653977,1736700638089,-500.0,8.999e-05,2]
[348653979,1736700638098,-500.0,8.999e-05,2]
[348653981,1736700638112,-673.33,8.999e-05,2]
[348653983,1736700638121,-1691.98,8.999e-05,2]
[348653985,1736700638130,-500.0,8.999e-05,2]
[348653987,1736700638139,-500.0,8.999e-05,2]
[348653989,1736700638149,-500.0,8.999e-05,2]
[348653991,1736700638159,-844.22,8.999e-05,2]
[348653993,1736700638168,-500.0,8.999e-05,2]
[348653994,1736700638177,-500.0,8.999e-05,2]
[348653995,1736700638187,-500.0,8.999e-05,2]
[348653996,1736700638196,-516.21963015,8.999e-05,2]
[348653997,1736700638205,-500.0,8.999e-05,2]
[348653998,1736700638215,-995.13,8.999e-05,2]
[348653999,1736700638224,-500.0,8.999e-05,2]
[348654000,1736700638233,-500.0,8.999e-05,2]
[348654001,1736700638243,-500.0,8.999e-05,2]
[348654002,1736700638252,-500.0,8.999e-05,2]
[348654003,1736700638262,-500.0,8.999e-05,2]
[348654005,1736700638273,-500.0,8.999e-05,2]
[348654007,1736700638283,-500.0,8.999e-05,2]
[348654009,1736700638292,-500.0,8.999e-05,2]
[348654011,1736700638301,-503.16836204,8.999e-05,2]
[348654013,1736700638310,-500.0,8.999e-05,2]
[348654015,1736700638320,-500.0,8.999e-05,2]
[348654016,1736700638329,-1416.54,8.999e-05,2]
[348654018,1736700638339,-500.0,8.999e-05,2]
[348654021,1736700638350,-502.48586487,8.999e-05,2]
[348654022,1736700638359,-500.0,8.999e-05,2]
[348654025,1736700638369,-500.0,8.999e-05,2]
[348654026,1736700638378,-500.0,8.999e-05,2]
[348654028,1736700638387,-511.04433853,8.999e-05,2]
[348654030,1736700638397,-500.0,8.999e-05,2]
[348654032,1736700638406,-500.0,8.999e-05,2]
[348654034,1736700638417,-500.0,8.999e-05,2]
[348654037,1736700638427,-504.44498473,8.999e-05,2]
[348654038,1736700638436,-297.78873478,8.999e-05,2]
[348654046,1736700638495,-614.72573488,8.998e-05,2]
[348654048,1736700638506,-218.49426512,8.998e-05,2]
[348654050,1736700638516,-202.21126522,8.999e-05,2]
[348654052,1736700638525,-168.35646966,8.999e-05,2]
[348654208,1736700640121,-500.0,8.998e-05,2]
[348654210,1736700640131,-443.616,8.998e-05,2]
[348654219,1736700640210,-1417.954,8.998e-05,2]
[348654221,1736700640220,-333.16119179,8.999e-05,2]
[348654223,1736700640229,-20.16880826,8.999e-05,2]
[348654225,1736700640241,-479.83119174,8.999e-05,2]
[348654227,1736700640250,-500.0,8.999e-05,2]
[348654229,1736700640259,-508.25944272,8.999e-05,2]
[348654231,1736700640269,-500.0,8.999e-05,2]
[348654233,1736700640278,-503.03017837,8.999e-05,2]
[348654235,1736700640287,-500.0,8.999e-05,2]
[348654237,1736700640296,-500.0,8.999e-05,2]
[348654239,1736700640305,-500.0,8.999e-05,2]
[348654241,1736700640314,-500.0,8.999e-05,2]
[348654243,1736700640324,-609.49,8.999e-05,2]
[348654245,1736700640333,-505.79024746,8.999e-05,2]
[348654247,1736700640344,-516.67950152,8.999e-05,2]
[348654249,1736700640353,-503.04145965,8.999e-05,2]
[348654251,1736700640362,-507.73505271,8.999e-05,2]
[348654253,1736700640371,-500.0,8.999e-05,2]
[348654255,1736700640381,-500.0,8.999e-05,2]
[348654257,1736700640390,-500.0,8.999e-05,2]
[348654259,1736700640399,-493.48579679,8.999e-05,2]
[348654261,1736700640408,-18.40670788,8.999e-05,2]
[348654263,1736700640419,-516.91329212,8.999e-05,2]
[348654265,1736700640428,-500.0,8.999e-05,2]
[348654267,1736700640439,-500.0,8.999e-05,2]
[348654269,1736700640448,-502.24137427,8.999e-05,2]
[348654271,1736700640457,-500.0,8.999e-05,2]
[348654272,1736700640466,-163.24030161,8.999e-05,2]
[348654273,1736700640477,-337.34142162,8.999e-05,2]
[348654274,1736700640487,-1156.26,8.999e-05,2]
[348654275,1736700640496,-2306.32903653,8.999e-05,2]
[348654276,1736700640510,-407.78826,8.999e-05,2]
[348654280,1736700640541,1251.70688,8.937e-05,2]
[348654283,1736700640560,-574.51270347,8.999e-05,2]
[348654285,1736700640570,-523.4883066,8.999e-05,2]
[348654287,1736700640579,-500.0,8.999e-05,2]
[348654289,1736700640588,-500.0,8.999e-05,2]
[348654291,1736700640597,-503.85424085,8.999e-05,2]
[348654293,1736700640606,-500.0,8.999e-05,2]
[348654295,1736700640615,-951.77,8.999e-05,2]
[348654296,1736700640623,-500.0,8.999e-05,2]
[348654297,1736700640633,-500.0,8.999e-05,2]
[348654299,1736700640642,-500.0,8.999e-05,2]
[348654301,1736700640651,-500.0,8.999e-05,2]
[348654303,1736700640660,-500.0,8.999e-05,2]
[348654305,1736700640669,-501.95172263,8.999e-05,2]
[348654307,1736700640678,-501.81283138,8.999e-05,2]
[348654309,1736700640688,-500.0,8.999e-05,2]
[348654311,1736700640697,-1332.25,8.999e-05,2]
[348654313,1736700640706,-259.02240125,8.999e-05,2]
[348654315,1736700640715,-500.0,8.999e-05,2]
[348654317,1736700640725,-1266.62,8.999e-05,2]
[348654319,1736700640733,-1123.73,8.999e-05,2]
[348654320,1736700640744,-500.0,8.999e-05,2]
[348654322,1736700640753,-500.0,8.999e-05,2]
[348654324,1736700640762,-500.0,8.999e-05,2]
[348654326,1736700640771,-500.0,8.999e-05,2]
[348654328,1736700640782,-500.0,8.999e-05,2]
[348654330,1736700640791,-500.0,8.999e-05,2]
[348654332,1736700640800,-500.0,8.999e-05,2]
[348654334,1736700640809,-500.0,8.999e-05,2]
[348654336,1736700640818,-500.0,8.999e-05,2]
[348654338,1736700640827,-500.0,8.999e-05,2]
[348654340,1736700640837,-649.23,8.999e-05,2]
[348654342,1736700640847,-3743.22,8.999e-05,2]
[348654344,1736700640857,-500.0,8.999e-05,2]
[348654346,1736700640867,-502.90354546,8.999e-05,2]
[348654348,1736700640876,-500.45233194,8.999e-05,2]
[348654350,1736700640886,-500.0,8.999e-05,2]
[348654352,1736700640896,-500.0,8.999e-05,2]
[348654354,1736700640905,-500.0,8.999e-05,2]
[348654357,1736700640917,-500.92486455,8.999e-05,2]
[348654359,1736700640929,-500.0,8.999e-05,2]
[348654361,1736700640944,-500.0,8.999e-05,2]
[348654364,1736700640956,-500.0,8.999e-05,2]
[348654365,1736700640967,-505.72965726,8.999e-05,2]
[348654368,1736700640978,-500.0,8.999e-05,2]
[348654370,1736700640990,-500.0,8.999e-05,2]
[348654372,1736700641002,-500.0,8.999e-05,2]
[348654374,1736700641014,-500.0,8.999e-05,2]
[348654376,1736700641026,-500.0,8.999e-05,2]
[348654379,1736700641038,-500.0,8.999e-05,2]
[348654381,1736700641051,-681.51,8.999e-05,2]
[348654383,1736700641063,-500.0,8.999e-05,2]
[348654385,1736700641074,-500.0,8.999e-05,2]
[348654388,1736700641087,-500.0,8.999e-05,2]
[348654390,1736700641097,-4103.02,8.999e-05,2]
[348654392,1736700641114,-500.0,8.999e-05,2]
[348654394,1736700641126,-500.0,8.999e-05,2]
[348654397,1736700641139,-500.0,8.999e-05,2]
[348654399,1736700641151,-500.0,8.999e-05,2]
[348654401,1736700641164,-500.0,8.999e-05,2]
[348654404,1736700641176,-150.0,8.999e-05,2]
[348654406,1736700641191,-527.25,8.999e-05,2]
[348654408,1736700641204,-500.0,8.999e-05,2]
[348654411,1736700641218,-501.86961007,8.999e-05,2]
[348654413,1736700641231,-5000.0,8.999e-05,2]
[348654415,1736700641242,-500.0,8.999e-05,2]
[348654418,1736700641256,-500.0,8.999e-05,2]
[348654420,1736700641267,-500.0,8.999e-05,2]
[348654422,1736700641279,-500.0,8.999e-05,2]
[348654425,1736700641291,-500.0,8.999e-05,2]
[348654427,1736700641304,-500.0,8.999e-05,2]
[348654429,1736700641314,-839.98,8.999e-05,2]
[348654431,1736700641326,-500.0,8.999e-05,2]
[348654434,1736700641339,-500.0,8.999e-05,2]
[348654436,1736700641351,-507.54425229,8.999e-05,2]
[348654438,1736700641363,-590.01,8.999e-05,2]
[348654440,1736700641374,-500.0,8.999e-05,2]
[348654443,1736700641386,-500.0,8.999e-05,2]
[348654445,1736700641396,-500.0,8.999e-05,2]
[348654447,1736700641406,-500.0,8.999e-05,2]
[348654449,1736700641417,-502.6436648,8.999e-05,2]
[348654451,1736700641428,-500.0,8.999e-05,2]
[348654454,1736700641441,-500.0,8.999e-05,2]
[348654456,1736700641455,-3566.43,8.999e-05,2]
[348654459,1736700641476,-500.5998146,8.999e-05,2]
[348654462,1736700641489,-508.17425266,8.999e-05,2]
[348654464,1736700641500,-500.0,8.999e-05,2]
[348654466,1736700641512,-500.0,8.999e-05,2]
[348654468,1736700641525,-2261.67,8.999e-05,2]
[348654471,1736700641542,-500.0,8.999e-05,2]
[348654474,1736700641558,-500.0,8.999e-05,2]
[348654476,1736700641569,-500.0,8.999e-05,2]
[348654478,1736700641579,-500.0,8.999e-05,2]
[348654480,1736700641590,-932.25,8.999e-05,2]
[348654482,1736700641601,-500.0,8.999e-05,2]
[348654485,1736700641612,-500.0,8.999e-05,2]
[348654487,1736700641625,-500.0,8.999e-05,2]
[348654489,1736700641636,-500.0,8.999e-05,2]
[348654492,1736700641657,-500.0,8.999e-05,2]
[348654495,1736700641668,-500.0,8.999e-05,2]
[348654497,1736700641680,-500.0,9.061e-05,2]
[348654499,1736700641692,-750.02,9.061e-05,2]
[348654502,1736700641705,-500.0,9.061e-05,2]
[348654504,1736700641717,-500.0,9.061e-05,2]
[348654506,1736700641728,-500.0,9.061e-05,2]
[348654508,1736700641742,-802.17,9.061e-05,2]
[348654511,1736700641753,-500.0,9.061e-05,2]
[348654513,1736700641765,-500.0,9.061e-05,2]
[348654515,1736700641776,-500.0,9.061e-05,2]
[348654518,1736700641788,-500.0,9.061e-05,2]
[348654520,1736700641799,-534.42,9.061e-05,2]
[348654521,1736700641811,-519.7,9.061e-05,2]
[348654522,1736700641822,-500.0,9.061e-05,2]
[348654523,1736700641833,-500.0,9.061e-05,2]
[348654524,1736700641845,-500.81693741,9.061e-05,2]
[348654525,1736700641856,-500.83393922,9.061e-05,2]
[348654526,1736700641868,-871.26,9.061e-05,2]
[348654527,1736700641879,-350.44844237,9.061e-05,2]
[348654528,1736700641890,-500.0,9.061e-05,2]
[348654529,1736700641901,-501.03109747,9.061e-05,2]
[348654531,1736700641914,-500.49234578,9.061e-05,2]
[348654534,1736700641926,-500.0,9.061e-05,2]
[348654536,1736700641937,-500.0,9.061e-05,2]
[348654538,1736700641948,-500.0,9.061e-05,2]
[348654540,1736700641960,-501.08004424,9.061e-05,2]
[348654543,1736700641971,-500.0,9.061e-05,2]
[348654545,1736700641983,-603.81872215,9.061e-05,2]
[348654547,1736700641993,-501.1752285,9.061e-05,2]
[348654549,1736700642004,-500.0,9.061e-05,2]
[348654551,1736700642015,-500.0,9.061e-05,2]
[348654554,1736700642026,-500.0,9.061e-05,2]
[348654556,1736700642037,-500.0,9.061e-05,2]
[348654558,1736700642049,-610.641459,9.061e-05,2]
[348654560,1736700642060,-500.0,9.061e-05,2]
[348654562,1736700642070,-500.47567859,9.061e-05,2]
[348654564,1736700642081,-498.46236028,9.061e-05,2]
[348654567,1736700642093,-500.20044793,9.061e-05,2]
[348654569,1736700642106,-500.0,9.061e-05,2]
[348654571,1736700642118,-500.0,9.061e-05,2]
[348654573,1736700642129,-500.39228216,9.061e-05,2]
[348654575,1736700642140,-500.0,9.061e-05,2]
[348654577,1736700642152,-500.73460745,9.061e-05,2]
[348654580,1736700642162,-854.85,9.061e-05,2]
[348654582,1736700642174,-501.40447644,9.061e-05,2]
[348654584,1736700642186,-500.0,9.061e-05,2]
[348654586,1736700642197,-500.0,9.061e-05,2]
[348654588,1736700642208,-500.0,9.061e-05,2]
[348654591,1736700642220,-500.0,9.061e-05,2]
[348654593,1736700642233,-500.45105783,9.061e-05,2]
[348654595,1736700642244,-500.0,9.061e-05,2]
[348654597,1736700642255,-500.0,9.061e-05,2]
[348654600,1736700642267,-500.0,9.061e-05,2]
[348654602,1736700642278,-501.52199765,9.061e-05,2]
[348654605,1736700642290,-501.55797535,9.061e-05,2]
[348654607,1736700642301,-835.94,9.061e-05,2]
[348654609,1736700642312,-500.0,9.061e-05,2]
[348654612,1736700642323,-500.0,9.061e-05,2]
[348654614,1736700642334,-500.0,9.061e-05,2]
[348654616,1736700642346,-714.45,9.061e-05,2]
[348654618,1736700642357,-500.0,9.061e-05,2]
[348654620,1736700642368,-500.0,9.061e-05,2]
[348654623,1736700642380,-500.90465725,9.061e-05,2]
[348654626,1736700642391,-588.61,9.061e-05,2]
[348654629,1736700642402,-501.17877521,9.061e-05,2]
[348654632,1736700642413,-500.0,9.061e-05,2]
[348654637,1736700642425,-1720.02,9.061e-05,2]
[348654640,1736700642439,-501.2773116,9.061e-05,2]
[348654642,1736700642450,-500.0,9.061e-05,2]
[348654644,1736700642461,-652.98,9.061e-05,2]
[348654646,1736700642472,-500.0,9.061e-05,2]
[348654648,1736700642483,-500.0,9.061e-05,2]
[348654650,1736700642494,-500.0,9.061e-05,2]
[348654653,1736700642507,-500.0,9.061e-05,2]
[348654655,1736700642518,-500.0,9.061e-05,2]
[348654657,1736700642529,-500.0,9.061e-05,2]
[348654659,1736700642540,-500.0,9.061e-05,2]
[348654661,1736700642551,-500.0,9.061e-05,2]
[348654664,1736700642563,-549.09,9.061e-05,2]
[348654666,1736700642575,-500.0,9.061e-05,2]
[348654668,1736700642586,-500.0,9.061e-05,2]
[348654670,1736700642597,-500.0,9.061e-05,2]
[348654672,1736700642609,-516.37161911,9.061e-05,2]
[348654675,1736700642621,-500.0,9.061e-05,2]
[348654677,1736700642632,-500.0,9.061e-05,2]
[348654679,1736700642644,-4943.86,9.061e-05,2]
[348654681,1736700642655,-688.45,9.061e-05,2]
[348654683,1736700642666,-3443.63,9.061e-05,2]
[348654686,1736700642678,-500.0,9.061e-05,2]
[348654688,1736700642692,-710.84,9.061e-05,2]
[348654690,1736700642703,-500.0,9.061e-05,2]
[348654692,1736700642714,-1074.26,9.061e-05,2]
[348654694,1736700642725,-3653.37,9.061e-05,2]
[348654697,1736700642736,-880.69,9.061e-05,2]
[348654699,1736700642747,-500.0,9.061e-05,2]
[348654701,1736700642758,-896.33,9.061e-05,2]
[348654703,1736700642769,-511.83012332,9.061e-05,2]
[348654705,1736700642780,-501.70798032,9.061e-05,2]
[348654708,1736700642791,-500.0,9.061e-05,2]
[348654710,1736700642803,-500.0,9.061e-05,2]
[348654712,1736700642814,-377.67556981,9.061e-05,2]
[348654714,1736700642824,-500.0,9.061e-05,2]
[348654716,1736700642835,-500.0,9.061e-05,2]
[348654720,1736700642847,-503.16101319,9.061e-05,2]
[348654722,1736700642858,-1087.03,9.061e-05,2]
[348654724,1736700642868,-237.43690808,9.061e-05,2]
[348654726,1736700642880,-500.0,9.061e-05,2]
[348654728,1736700642891,-533.10768742,9.061e-05,2]
[348654731,1736700642902,-500.0,9.061e-05,2]
[348654733,1736700642920,-21205.43,9.062e-05,2]
[348654736,1736700642932,-164.92,9.129e-05,2]
[348654738,1736700642946,-738.81,9.272e-05,2]
[348654740,1736700642959,-500.0,9.272e-05,2]
[348654744,1736700642972,-999.9,9.272e-05,2]
[348654746,1736700642986,-658.7,9.272e-05,2]
[348654750,1736700642998,-852.49,9.272e-05,2]
[348654753,1736700643010,-563.58,9.272e-05,2]
[348654757,1736700643023,-500.0,9.272e-05,2]
[348654759,1736700643035,-500.0,9.272e-05,2]
[348654762,1736700643047,-500.0,9.272e-05,2]
[348654764,1736700643060,-690.64,9.272e-05,2]
[348654766,1736700643072,-500.0,9.272e-05,2]
[348654769,1736700643084,-500.0,9.272e-05,2]
[348654771,1736700643095,-857.17,9.272e-05,2]
[348654773,1736700643108,-674.27,9.272e-05,2]
[348654775,1736700643120,-158.40208785,9.272e-05,2]
[348654777,1736700643132,-500.0,9.272e-05,2]
[348654779,1736700643143,-999.58,9.272e-05,2]
[348654782,1736700643155,-500.0,9.272e-05,2]
[348654784,1736700643166,-690.05,9.272e-05,2]
[348654786,1736700643179,-833.44,9.272e-05,2]
[348654789,1736700643192,-500.0,9.272e-05,2]
[348654791,1736700643203,-988.81,9.272e-05,2]
[348654793,1736700643214,-668.15,9.272e-05,2]
[348654795,1736700643225,-779.2,9.272e-05,2]
[348654797,1736700643238,-500.0,9.272e-05,2]
[348654799,1736700643249,-500.0,9.272e-05,2]
[348654801,1736700643260,-500.0,9.272e-05,2]
[348654804,1736700643271,-500.0,9.272e-05,2]
[348654806,1736700643283,-1054.74,9.272e-05,2]
[348654808,1736700643294,-500.0,9.272e-05,2]
[348654810,1736700643305,-500.0,9.272e-05,2]
[348654812,1736700643317,-500.0,9.272e-05,2]
[348654815,1736700643329,-500.0,9.272e-05,2]
[348654817,1736700643339,-748.93,9.272e-05,2]
[348654819,1736700643350,-159.14152261,9.272e-05,2]
[348654821,1736700643361,-500.0,9.272e-05,2]
[348654823,1736700643372,-500.0,9.272e-05,2]
[348654825,1736700643382,-500.0,9.272e-05,2]
[348654827,1736700643393,-500.0,9.272e-05,2]
[348654830,1736700643404,-500.0,9.272e-05,2]
[348654832,1736700643415,-500.0,9.272e-05,2]
[348654834,1736700643426,-505.92063295,9.272e-05,2]
[348654836,1736700643437,-922.61,9.272e-05,2]
[348654838,1736700643449,-500.0,9.272e-05,2]
[348654840,1736700643459,-500.0,9.272e-05,2]
[348654842,1736700643470,-500.0,9.272e-05,2]
[348654845,1736700643481,-500.0,9.272e-05,2]
[348654847,1736700643492,-500.0,9.272e-05,2]
[348654849,1736700643503,-584.82,9.272e-05,2]
[348654851,1736700643514,-500.0,9.272e-05,2]
[348654853,1736700643525,-500.0,9.272e-05,2]
[348654855,1736700643535,-500.0,9.272e-05,2]
[348654858,1736700643546,-893.62,9.272e-05,2]
[348654860,1736700643556,-500.0,9.272e-05,2]
[348654862,1736700643567,-494.43758482,9.272e-05,2]
[348654864,1736700643579,-500.0,9.272e-05,2]
[348654866,1736700643589,-500.0,9.272e-05,2]
[348654868,1736700643600,-1058.98,9.272e-05,2]
[348654871,1736700643611,-500.0,9.272e-05,2]
[348654873,1736700643622,-500.0,9.272e-05,2]
[348654875,1736700643632,-500.0,9.272e-05,2]
[348654877,1736700643643,-500.0,9.272e-05,2]
[348654879,1736700643654,-2993.24,9.272e-05,2]
[348654881,1736700643664,-242.14448323,9.272e-05,2]
[348654883,1736700643675,-500.0,9.272e-05,2]
[348654886,1736700643687,-500.0,9.272e-05,2]
[348654888,1736700643699,-500.0,9.272e-05,2]
[348654890,1736700643711,-1131.37,9.272e-05,2]
[348654892,1736700643723,-500.0,9.272e-05,2]
[348654894,1736700643734,-500.0,9.272e-05,2]
[348654895,1736700643746,-2622.41,9.272e-05,2]
[348654896,1736700643756,-500.0,9.272e-05,2]
[348654898,1736700643768,-715.88,9.272e-05,2]
[348654900,1736700643779,-8282.98,9.272e-05,2]
[348654903,1736700643790,-838.98,9.272e-05,2]
[348654905,1736700643800,-500.0,9.272e-05,2]